[Event "Championship of RSO-Alania 2020"]
[Site "Vladikavkaz, Russia"]
[Date "2020.11.30"]
[Round "1.1"]
[White "Bibilov, Alan"]
[Black "Hastsaev, Marat"]
[Result "0-1"]
[TimeControl "90+30"]
[WhiteElo "1073"]
[BlackElo "2007"]

1. e4 {[%clk 01:30:58]} {[%emt 00:00:01]} e6 {[%clk 01:30:55]} {[%emt
00:00:06]} 2. d4 {[%clk 01:31:25]} {[%emt 00:00:04]} d5 {[%clk 01:31:20]}
{[%emt 00:00:04]} 3. exd5 {[%clk 01:31:48]} {[%emt 00:00:07]} exd5 {[%clk
01:31:44]} {[%emt 00:00:06]} 4. Nf3 {[%clk 01:32:11]} {[%emt 00:00:06]} Nf6
{[%clk 01:32:03]} {[%emt 00:00:11]} 5. Bd3 {[%clk 01:32:32]} {[%emt 00:00:09]}
Bd6 {[%clk 01:32:25]} {[%emt 00:00:09]} 6. Qe2+ {[%clk 01:32:43]} {[%emt
00:00:18]} Be6 {[%clk 01:29:24]} {[%emt 00:03:32]} 7. Ng5 {[%clk 01:32:40]}
{[%emt 00:00:33]} Qd7 {[%clk 01:28:37]} {[%emt 00:01:16]} 8. O-O {[%clk
01:32:06]} {[%emt 00:01:04]} O-O {[%clk 01:28:43]} {[%emt 00:00:24]} 9. Nxe6
{[%clk 01:32:12]} {[%emt 00:00:24]} fxe6 {[%clk 01:28:41]} {[%emt 00:00:33]} 10.
Re1 {[%clk 01:30:35]} {[%emt 00:02:06]} Nc6 {[%clk 01:28:59]} {[%emt 00:00:13]}
11. c3 {[%clk 01:29:48]} {[%emt 00:01:16]} e5 {[%clk 01:28:24]} {[%emt
00:01:05]} 12. dxe5 {[%clk 01:29:16]} {[%emt 00:01:02]} Nxe5 {[%clk 01:28:12]}
{[%emt 00:00:42]} 13. Be3 {[%clk 01:25:48]} {[%emt 00:03:58]} Nfg4 {[%clk
01:24:56]} {[%emt 00:03:47]} 14. Qc2 {[%clk 01:23:05]} {[%emt 00:03:13]} Nxd3
{[%clk 01:24:34]} {[%emt 00:00:52]} 15. Qxd3 {[%clk 01:23:17]} {[%emt
00:00:17]} Bxh2+ {[%clk 01:24:28]} {[%emt 00:00:37]} 16. Kh1 {[%clk 01:23:36]}
{[%emt 00:00:10]} Rae8 {[%clk 01:23:03]} {[%emt 00:01:55]} 17. Nd2 {[%clk
01:21:55]} {[%emt 00:02:10]} Rxe3 {[%clk 01:21:52]} {[%emt 00:01:42]} 18. Qd4
{[%clk 01:20:56]} {[%emt 00:01:29]} Be5 {[%clk 01:19:46]} {[%emt 00:02:36]} 19.
Qxa7 {[%clk 01:17:07]} {[%emt 00:04:18]} Nxf2+ {[%clk 01:17:46]} {[%emt
00:02:31]} 20. Kg1 {[%clk 01:17:20]} {[%emt 00:00:17]} Nh3+ {[%clk 01:16:57]}
{[%emt 00:01:19]} 21. Kh1 {[%clk 01:16:58]} {[%emt 00:00:52]} Nf2+ {[%clk
01:15:39]} {[%emt 00:01:48]} 22. Kg1 {[%clk 01:17:22]} {[%emt 00:00:07]} Bh2+
{[%clk 01:10:52]} {[%emt 00:05:17]} 23. Kxh2 {[%clk 01:17:44]} {[%emt
00:00:06]} Qd6+ {[%clk 01:11:16]} {[%emt 00:00:06]} 24. Kg1 {[%clk 01:17:55]}
{[%emt 00:00:19]} Qh6 {[%clk 01:11:26]} {[%emt 00:00:20]} 25. Kh1 {[%clk
01:17:11]} {[%emt 00:01:02]} 0-1

[Event "Championship of RSO-Alania 2020"]
[Site "Vladikavkaz, Russia"]
[Date "2021.01.02"]
[Round "2.1"]
[White "Hastsaev, Marat"]
[Black "Dryaeva, Lana"]
[Result "0-1"]
[TimeControl "90+30"]
[WhiteElo "2007"]
[BlackElo "1404"]

1. e4 {[%clk 01:30:58]} {[%emt 00:00:01]} c5 {[%clk 01:30:55]} {[%emt
00:00:05]} 2. Nc3 {[%clk 01:31:20]} {[%emt 00:00:08]} Nc6 {[%clk 01:31:21]}
{[%emt 00:00:04]} 3. g3 {[%clk 01:31:46]} {[%emt 00:00:04]} g6 {[%clk
01:31:43]} {[%emt 00:00:08]} 4. Bg2 {[%clk 01:32:11]} {[%emt 00:00:05]} Bg7
{[%clk 01:32:11]} {[%emt 00:00:02]} 5. d3 {[%clk 01:32:37]} {[%emt 00:00:05]}
d6 {[%clk 01:32:37]} {[%emt 00:00:04]} 6. f4 {[%clk 01:33:00]} {[%emt
00:00:06]} e6 {[%clk 01:33:04]} {[%emt 00:00:03]} 7. Nf3 {[%clk 01:33:15]}
{[%emt 00:00:14]} Nge7 {[%clk 01:33:28]} {[%emt 00:00:08]} 8. O-O {[%clk
01:33:36]} {[%emt 00:00:09]} O-O {[%clk 01:33:48]} {[%emt 00:00:10]} 9. Be3
{[%clk 01:33:06]} {[%emt 00:01:00]} a6 {[%clk 01:34:10]} {[%emt 00:00:09]} 10.
g4 {[%clk 01:32:19]} {[%emt 00:01:16]} f5 {[%clk 01:34:35]} {[%emt 00:00:05]}
11. gxf5 {[%clk 01:29:11]} {[%emt 00:03:38]} exf5 {[%clk 01:34:04]} {[%emt
00:01:01]} 12. e5 {[%clk 01:26:30]} {[%emt 00:03:11]} Rb8 {[%clk 01:15:39]}
{[%emt 00:18:55]} 13. d4 {[%clk 01:14:42]} {[%emt 00:12:18]} cxd4 {[%clk
01:08:27]} {[%emt 00:07:42]} 14. Bxd4 {[%clk 01:13:35]} {[%emt 00:01:37]} dxe5
{[%clk 00:56:56]} {[%emt 00:12:01]} 15. Bxe5 {[%clk 01:08:24]} {[%emt
00:05:41]} Qb6+ {[%clk 00:49:20]} {[%emt 00:08:06]} 16. Kh1 {[%clk 01:08:36]}
{[%emt 00:00:18]} Rd8 {[%clk 00:47:45]} {[%emt 00:02:06]} 17. Qe2 {[%clk
01:06:20]} {[%emt 00:02:46]} Nxe5 {[%clk 00:47:44]} {[%emt 00:00:31]} 18. Nxe5
{[%clk 01:06:29]} {[%emt 00:00:21]} Be6 {[%clk 00:38:09]} {[%emt 00:10:05]} 19.
Na4 {[%clk 01:04:22]} {[%emt 00:02:38]} Qb5 {[%clk 00:31:32]} {[%emt 00:07:07]}
20. Qxb5 {[%clk 01:04:10]} {[%emt 00:00:42]} axb5 {[%clk 00:32:00]} {[%emt
00:00:02]} 21. Nc5 {[%clk 01:04:07]} {[%emt 00:00:32]} Bd5 {[%clk 00:32:02]}
{[%emt 00:00:28]} 22. Rad1 {[%clk 00:59:56]} {[%emt 00:04:41]} Bxg2+ {[%clk
00:12:11]} {[%emt 00:20:21]} 23. Kxg2 {[%clk 01:00:22]} {[%emt 00:00:04]} Rxd1
{[%clk 00:11:46]} {[%emt 00:00:56]} 24. Rxd1 {[%clk 01:00:46]} {[%emt
00:00:05]} Rc8 {[%clk 00:11:55]} {[%emt 00:00:21]} 25. Ne6 {[%clk 00:45:20]}
{[%emt 00:15:56]} Bxe5 {[%clk 00:10:32]} {[%emt 00:01:53]} 26. fxe5 {[%clk
00:45:44]} {[%emt 00:00:06]} Rxc2+ {[%clk 00:10:56]} {[%emt 00:00:06]} 27. Kg3
{[%clk 00:45:44]} {[%emt 00:00:30]} Nc6 {[%clk 00:09:59]} {[%emt 00:01:27]} 28.
Rd7 {[%clk 00:45:01]} {[%emt 00:01:13]} Rxb2 {[%clk 00:05:47]} {[%emt
00:04:42]} 29. Rg7+ {[%clk 00:44:44]} {[%emt 00:00:47]} Kh8 {[%clk 00:06:16]}
{[%emt 00:00:01]} 30. Rxb7 {[%clk 00:44:03]} {[%emt 00:01:10]} Rc2 {[%clk
00:03:29]} {[%emt 00:03:17]} 31. Rxb5 {[%clk 00:35:54]} {[%emt 00:08:39]} Rxa2
{[%clk 00:03:55]} {[%emt 00:00:04]} 32. Rc5 {[%clk 00:35:36]} {[%emt 00:00:48]}
Ra6 {[%clk 00:03:20]} {[%emt 00:01:05]} 33. Kf4 {[%clk 00:35:05]} {[%emt
00:01:00]} h6 {[%clk 00:03:35]} {[%emt 00:00:15]} 34. Rc4 {[%clk 00:34:39]}
{[%emt 00:00:56]} Ne7 {[%clk 00:03:43]} {[%emt 00:00:23]} 35. Nc7 {[%clk
00:33:14]} {[%emt 00:01:55]} Ra3 {[%clk 00:04:05]} {[%emt 00:00:08]} 36. e6
{[%clk 00:31:01]} {[%emt 00:02:42]} Kg7 {[%clk 00:03:19]} {[%emt 00:01:17]} 37.
Ke5 {[%clk 00:27:47]} {[%emt 00:03:44]} Re3+ {[%clk 00:03:44]} {[%emt
00:00:05]} 38. Kd6 {[%clk 00:28:10]} {[%emt 00:00:07]} Nc8+ {[%clk 00:04:07]}
{[%emt 00:00:08]} 39. Kc6 {[%clk 00:28:28]} {[%emt 00:00:12]} Rd3 {[%clk
00:03:45]} {[%emt 00:00:52]} 40. Nd5 {[%clk 00:27:45]} {[%emt 00:01:13]} Rxd5
{[%clk 00:03:44]} {[%emt 00:00:31]} 41. Kxd5 {[%clk 00:27:20]} {[%emt
00:00:55]} Nb6+ {[%clk 00:04:13]} {[%emt 00:00:01]} 42. Kd4 {[%clk 00:26:25]}
{[%emt 00:01:24]} Nxc4 {[%clk 00:04:36]} {[%emt 00:00:07]} 43. Kxc4 {[%clk
00:26:53]} {[%emt 00:00:02]} Kf8 {[%clk 00:05:01]} {[%emt 00:00:05]} 44. Kd5
{[%clk 00:26:55]} {[%emt 00:00:28]} g5 {[%clk 00:05:11]} {[%emt 00:00:20]} 0-1

[Event "Championship of RSO-Alania 2020"]
[Site "Vladikavkaz, Russia"]
[Date "2021.01.02"]
[Round "2.2"]
[White "Bogov, Khetag"]
[Black "Agkatsev, Albert A"]
[Result "1/2-1/2"]
[TimeControl "90+30"]
[WhiteElo "1263"]
[BlackElo "1550"]

1. Nf3 {[%clk 01:30:58]} {[%emt 00:00:01]} Nf6 {[%clk 01:30:54]} {[%emt
00:00:06]} 2. g3 {[%clk 01:31:18]} {[%emt 00:00:10]} d5 {[%clk 01:31:12]}
{[%emt 00:00:13]} 3. c4 {[%clk 01:31:40]} {[%emt 00:00:08]} c6 {[%clk
01:31:29]} {[%emt 00:00:13]} 4. b3 {[%clk 01:31:57]} {[%emt 00:00:11]} Bf5
{[%clk 01:31:42]} {[%emt 00:00:18]} 5. Bb2 {[%clk 01:32:18]} {[%emt 00:00:09]}
Nbd7 {[%clk 01:31:41]} {[%emt 00:00:31]} 6. Bg2 {[%clk 01:32:38]} {[%emt
00:00:10]} Qc7 {[%clk 01:30:57]} {[%emt 00:01:15]} 7. O-O {[%clk 01:32:28]}
{[%emt 00:00:39]} e6 {[%clk 01:30:32]} {[%emt 00:00:55]} 8. d3 {[%clk
01:32:50]} {[%emt 00:00:08]} Be7 {[%clk 01:30:32]} {[%emt 00:00:30]} 9. Nbd2
{[%clk 01:32:38]} {[%emt 00:00:41]} O-O {[%clk 01:27:34]} {[%emt 00:03:28]} 10.
Rc1 {[%clk 01:32:48]} {[%emt 00:00:20]} h6 {[%clk 01:26:53]} {[%emt 00:01:12]}
11. Rc2 {[%clk 01:32:51]} {[%emt 00:00:27]} Rfe8 {[%clk 01:26:48]} {[%emt
00:00:34]} 12. Qa1 {[%clk 01:33:06]} {[%emt 00:00:14]} a5 {[%clk 01:26:25]}
{[%emt 00:00:54]} 13. a3 {[%clk 01:31:20]} {[%emt 00:02:16]} Rac8 {[%clk
01:25:22]} {[%emt 00:01:32]} 14. Rcc1 {[%clk 01:30:55]} {[%emt 00:00:54]} Qb8
{[%clk 01:23:49]} {[%emt 00:02:04]} 15. Bc3 {[%clk 01:30:47]} {[%emt 00:00:38]}
Qa7 {[%clk 01:21:15]} {[%emt 00:03:05]} 16. b4 {[%clk 01:30:07]} {[%emt
00:01:10]} axb4 {[%clk 01:21:03]} {[%emt 00:00:42]} 17. axb4 {[%clk 01:30:30]}
{[%emt 00:00:07]} Ra8 {[%clk 01:21:24]} {[%emt 00:00:08]} 18. Qb2 {[%clk
01:30:07]} {[%emt 00:00:53]} Qa3 {[%clk 01:19:44]} {[%emt 00:02:10]} 19. c5
{[%clk 01:28:46]} {[%emt 00:01:51]} b6 {[%clk 01:18:39]} {[%emt 00:01:35]} 20.
Nb3 {[%clk 01:25:28]} {[%emt 00:03:48]} bxc5 {[%clk 01:17:43]} {[%emt
00:01:25]} 21. Nxc5 {[%clk 01:25:26]} {[%emt 00:00:32]} Nxc5 {[%clk 01:17:19]}
{[%emt 00:00:54]} 22. Qxa3 {[%clk 01:24:45]} {[%emt 00:01:11]} Rxa3 {[%clk
01:17:43]} {[%emt 00:00:06]} 23. bxc5 {[%clk 01:25:10]} {[%emt 00:00:04]} Rea8
{[%clk 01:13:55]} {[%emt 00:04:18]} 24. Bd4 {[%clk 01:24:43]} {[%emt 00:00:57]}
Nd7 {[%clk 01:13:41]} {[%emt 00:00:43]} 25. Ne5 {[%clk 01:24:46]} {[%emt
00:00:28]} Nxe5 {[%clk 01:13:46]} {[%emt 00:00:25]} 26. Bxe5 {[%clk 01:25:06]}
{[%emt 00:00:10]} f6 {[%clk 01:13:26]} {[%emt 00:00:51]} 27. Bd6 {[%clk
01:25:19]} {[%emt 00:00:16]} Bxd6 {[%clk 01:12:30]} {[%emt 00:01:27]} 28. cxd6
{[%clk 01:25:37]} {[%emt 00:00:13]} R3a6 {[%clk 01:12:37]} {[%emt 00:00:22]} 29.
e4 {[%emt 00:03:30]} Bg4 30. exd5 {[%clk 01:24:08]} {[%emt 00:00:29]} exd5
{[%clk 01:11:46]} {[%emt 00:00:21]} 31. Rxc6 {[%clk 01:24:01]} {[%emt
00:00:37]} Rxc6 {[%clk 01:12:09]} {[%emt 00:00:06]} 32. Bxd5+ {[%clk 01:24:26]}
{[%emt 00:00:06]} Kf8 {[%clk 01:11:40]} {[%emt 00:00:59]} 33. Bxc6 {[%clk
01:24:43]} {[%emt 00:00:13]} Rd8 {[%clk 01:12:05]} {[%emt 00:00:05]} 34. d7
{[%clk 01:24:56]} {[%emt 00:00:17]} Bxd7 {[%clk 01:12:29]} {[%emt 00:00:06]} 35.
Bxd7 {[%clk 01:25:19]} {[%emt 00:00:06]} Rxd7 {[%clk 01:12:54]} {[%emt
00:00:05]} 36. Rd1 {[%clk 01:25:43]} {[%emt 00:00:06]} Ke7 {[%clk 01:12:57]}
{[%emt 00:00:26]} 37. d4 {[%clk 01:26:04]} {[%emt 00:00:09]} Kd6 {[%clk
01:13:18]} {[%emt 00:00:08]} 38. Kg2 {[%clk 01:26:27]} {[%emt 00:00:07]} Kd5
{[%clk 01:13:35]} {[%emt 00:00:13]} 39. Re1 {[%clk 01:26:00]} {[%emt 00:00:57]}
Rc7 {[%clk 01:13:36]} {[%emt 00:00:29]} 40. Rd1 {[%clk 01:26:08]} {[%emt
00:00:23]} Rc4 {[%clk 01:13:00]} {[%emt 00:01:07]} 41. Kf3 {[%clk 01:26:13]}
{[%emt 00:00:24]} Rxd4 {[%clk 01:13:02]} {[%emt 00:00:27]} 42. Rxd4+ {[%clk
01:26:22]} {[%emt 00:00:22]} Kxd4 {[%clk 01:13:25]} {[%emt 00:00:08]} 43. Kf4
{[%clk 01:26:33]} {[%emt 00:00:18]} g6 {[%clk 01:13:16]} {[%emt 00:00:38]} 44.
h4 {[%clk 01:26:57]} {[%emt 00:00:06]} h5 {[%clk 01:12:50]} {[%emt 00:00:55]}
45. Ke4+ {[%emt 00:00:13]} 1/2-1/2

[Event "Championship of RSO-Alania 2020"]
[Site "Vladikavkaz, Russia"]
[Date "2021.01.02"]
[Round "2.3"]
[White "Tandelov, Arseny"]
[Black "Ryazanov, Nikolay"]
[Result "1-0"]
[TimeControl "90+30"]
[WhiteElo "1657"]
[BlackElo "1788"]

1. d4 {[%clk 01:30:57]} {[%emt 00:00:03]} d5 {[%clk 01:30:50]} {[%emt
00:00:10]} 2. Nf3 {[%clk 01:31:23]} {[%emt 00:00:04]} c5 {[%clk 01:30:47]}
{[%emt 00:00:32]} 3. e3 {[%clk 01:31:49]} {[%emt 00:00:05]} Nf6 {[%clk
01:30:43]} {[%emt 00:00:34]} 4. b3 {[%clk 01:32:14]} {[%emt 00:00:06]} e6
{[%clk 01:29:30]} {[%emt 00:01:42]} 5. Bb2 {[%clk 01:32:38]} {[%emt 00:00:07]}
Nc6 {[%clk 01:29:15]} {[%emt 00:00:45]} 6. Nbd2 {[%clk 01:33:02]} {[%emt
00:00:06]} Bd6 {[%clk 01:27:47]} {[%emt 00:01:58]} 7. Ne5 {[%clk 01:33:08]}
{[%emt 00:00:24]} Qe7 {[%clk 01:23:49]} {[%emt 00:04:27]} 8. a3 {[%clk
01:33:02]} {[%emt 00:00:37]} O-O {[%clk 01:19:49]} {[%emt 00:04:29]} 9. Bd3
{[%clk 01:33:11]} {[%emt 00:00:21]} Bd7 {[%clk 01:17:13]} {[%emt 00:03:07]} 10.
O-O {[%clk 01:32:29]} {[%emt 00:01:12]} Rfc8 {[%clk 01:15:03]} {[%emt
00:02:40]} 11. f4 {[%clk 01:32:31]} {[%emt 00:00:27]} cxd4 {[%clk 01:11:28]}
{[%emt 00:04:05]} 12. exd4 {[%clk 01:32:53]} {[%emt 00:00:09]} g6 {[%clk
01:08:37]} {[%emt 00:03:20]} 13. Nxd7 {[%clk 01:29:35]} {[%emt 00:03:49]} Qxd7
{[%clk 01:07:12]} {[%emt 00:01:54]} 14. Qe1 {[%clk 01:27:46]} {[%emt 00:02:17]}
Nh5 {[%clk 01:02:36]} {[%emt 00:05:06]} 15. g3 {[%clk 01:26:57]} {[%emt
00:01:20]} a6 {[%clk 00:52:51]} {[%emt 00:10:15]} 16. Nf3 {[%clk 01:27:05]}
{[%emt 00:00:22]} b5 {[%clk 00:51:36]} {[%emt 00:01:46]} 17. Ne5 {[%clk
01:27:20]} {[%emt 00:00:15]} Qa7 {[%clk 00:51:18]} {[%emt 00:00:45]} 18. Qe3
{[%clk 01:24:52]} {[%emt 00:03:00]} Nf6 {[%clk 00:44:33]} {[%emt 00:07:15]} 19.
Kh1 {[%clk 01:22:31]} {[%emt 00:02:52]} Kg7 {[%clk 00:41:42]} {[%emt 00:03:21]}
20. h3 {[%clk 01:20:48]} {[%emt 00:02:12]} h5 {[%clk 00:39:27]} {[%emt
00:02:45]} 21. c3 {[%clk 01:18:08]} {[%emt 00:03:10]} Ne7 {[%clk 00:37:18]}
{[%emt 00:02:38]} 22. Rae1 {[%clk 01:16:10]} {[%emt 00:02:28]} Nf5 {[%clk
00:36:38]} {[%emt 00:01:10]} 23. Qf2 {[%clk 01:16:26]} {[%emt 00:00:14]} h4
{[%clk 00:33:57]} {[%emt 00:03:10]} 24. Bxf5 {[%clk 01:16:06]} {[%emt
00:00:51]} hxg3 {[%clk 00:33:58]} {[%emt 00:00:30]} 25. Qxg3 {[%clk 01:16:29]}
{[%emt 00:00:07]} exf5 {[%clk 00:34:12]} {[%emt 00:00:15]} 26. Rg1 {[%clk
01:16:19]} {[%emt 00:00:41]} Bxe5 {[%clk 00:26:23]} {[%emt 00:08:20]} 27. fxe5
{[%clk 01:15:59]} {[%emt 00:00:49]} Ne4 {[%clk 00:25:47]} {[%emt 00:01:07]} 28.
Rxe4 {[%clk 01:12:02]} {[%emt 00:04:28]} fxe4 {[%clk 00:23:54]} {[%emt
00:02:22]} 29. Bc1 {[%clk 01:12:04]} {[%emt 00:00:26]} Qc7 {[%clk 00:18:43]}
{[%emt 00:05:42]} 30. Bg5 {[%clk 01:09:36]} {[%emt 00:02:58]} Qxc3 {[%clk
00:17:36]} {[%emt 00:01:37]} 31. Be3 {[%clk 01:06:00]} {[%emt 00:04:06]} Rc6
{[%clk 00:15:17]} {[%emt 00:02:48]} 32. e6 {[%clk 01:05:53]} {[%emt 00:00:37]}
Re8 {[%clk 00:14:02]} {[%emt 00:01:46]} 33. Qe5+ {[%clk 01:04:54]} {[%emt
00:01:30]} f6 {[%clk 00:13:55]} {[%emt 00:00:36]} 34. Qf5 {[%clk 01:05:06]}
{[%emt 00:00:18]} g5 {[%clk 00:12:37]} {[%emt 00:01:48]} 35. Rxg5+ {[%clk
01:05:03]} {[%emt 00:00:32]} fxg5 {[%clk 00:12:37]} {[%emt 00:00:30]} 36. Qxg5+
{[%clk 01:05:30]} {[%emt 00:00:04]} Kf8 {[%clk 00:09:22]} {[%emt 00:03:45]} 37.
Qf6+ {[%clk 01:05:42]} {[%emt 00:00:18]} Kg8 {[%clk 00:09:44]} {[%emt
00:00:07]} 38. Qf7+ {[%clk 01:06:10]} {[%emt 00:00:02]} Kh8 {[%clk 00:10:07]}
{[%emt 00:00:08]} 39. Qxe8+ {[%clk 01:06:36]} {[%emt 00:00:03]} Kg7 {[%clk
00:10:04]} {[%emt 00:00:34]} 40. Qf7+ {[%clk 01:06:59]} {[%emt 00:00:06]} Kh8
{[%clk 00:10:26]} {[%emt 00:00:08]} 41. e7 {[%clk 01:06:38]} {[%emt 00:00:52]}
Qe1+ {[%clk 00:09:26]} {[%emt 00:01:30]} 42. Bg1 {[%clk 01:06:49]} {[%emt
00:00:17]} Rc8 {[%clk 00:09:39]} {[%emt 00:00:19]} 43. Qf6+ {[%clk 01:07:11]}
{[%emt 00:00:08]} Kh7 {[%clk 00:09:51]} {[%emt 00:00:19]} 44. Qf5+ {[%clk
01:07:34]} {[%emt 00:00:06]} Kg7 {[%clk 00:10:17]} {[%emt 00:00:04]} 45. Qxc8
{[%clk 01:07:58]} {[%emt 00:00:07]} 1-0

[Event "Championship of RSO-Alania 2020"]
[Site "Vladikavkaz, Russia"]
[Date "2021.01.02"]
[Round "2.4"]
[White "Agkatsev, Felix A"]
[Black "Edziev, Vladimir"]
[Result "1-0"]
[TimeControl "90+30"]
[WhiteElo "1338"]
[BlackElo "1478"]

1. d4 {[%clk 01:30:54]} {[%emt 00:00:03]} Nf6 {[%clk 01:30:55]} {[%emt
00:00:07]} 2. c4 {[%clk 01:31:23]} {[%emt 00:00:02]} b6 {[%clk 01:31:21]}
{[%emt 00:00:03]} 3. Nc3 {[%clk 01:31:43]} {[%emt 00:00:10]} Bb7 {[%clk
01:31:38]} {[%emt 00:00:13]} 4. Nf3 {[%clk 01:31:55]} {[%emt 00:00:19]} g6
{[%clk 01:31:48]} {[%emt 00:00:19]} 5. e3 {[%clk 01:32:14]} {[%emt 00:00:12]}
Bg7 {[%clk 01:32:07]} {[%emt 00:00:10]} 6. Bd3 {[%clk 01:32:34]} {[%emt
00:00:10]} O-O {[%clk 01:31:23]} {[%emt 00:01:14]} 7. e4 {[%clk 01:28:45]}
{[%emt 00:04:19]} e5 {[%clk 01:25:41]} {[%emt 00:06:12]} 8. d5 {[%clk
01:25:50]} {[%emt 00:03:25]} a5 {[%clk 01:25:03]} {[%emt 00:01:08]} 9. O-O
{[%clk 01:23:12]} {[%emt 00:03:08]} d6 {[%clk 01:23:51]} {[%emt 00:01:42]} 10.
Re1 {[%clk 01:16:45]} {[%emt 00:06:57]} Na6 {[%clk 01:21:15]} {[%emt 00:03:06]}
11. Bf1 {[%clk 01:11:34]} {[%emt 00:05:42]} Nc5 {[%clk 01:20:01]} {[%emt
00:01:43]} 12. g3 {[%clk 01:07:18]} {[%emt 00:04:45]} a4 {[%clk 01:17:40]}
{[%emt 00:02:52]} 13. Rb1 {[%clk 01:04:37]} {[%emt 00:03:11]} c6 {[%clk
01:07:01]} {[%emt 00:11:08]} 14. b4 {[%clk 01:02:25]} {[%emt 00:02:43]} axb3
{[%clk 01:06:59]} {[%emt 00:00:32]} 15. axb3 {[%clk 01:02:35]} {[%emt
00:00:19]} cxd5 {[%clk 01:05:15]} {[%emt 00:02:14]} 16. cxd5 {[%clk 01:02:39]}
{[%emt 00:00:27]} Qe7 {[%clk 00:50:23]} {[%emt 00:15:22]} 17. b4 {[%clk
01:01:26]} {[%emt 00:01:43]} Na6 {[%clk 00:45:58]} {[%emt 00:04:55]} 18. Be3
{[%clk 01:01:21]} {[%emt 00:00:34]} Rfc8 {[%clk 00:42:28]} {[%emt 00:04:00]} 19.
Qb3 {[%clk 00:56:37]} {[%emt 00:05:15]} Nd7 {[%clk 00:34:52]} {[%emt 00:08:05]}
20. Na4 {[%clk 00:52:28]} {[%emt 00:04:38]} Rab8 {[%clk 00:32:59]} {[%emt
00:02:23]} 21. Bb5 {[%clk 00:49:47]} {[%emt 00:03:12]} Rd8 {[%clk 00:24:25]}
{[%emt 00:09:04]} 22. Nxb6 {[%clk 00:45:08]} {[%emt 00:05:08]} Nf6 {[%clk
00:21:51]} {[%emt 00:03:04]} 23. Bd3 {[%clk 00:43:47]} {[%emt 00:01:52]} Ng4
{[%clk 00:15:51]} {[%emt 00:06:30]} 24. Nc4 {[%clk 00:41:32]} {[%emt 00:02:45]}
Nxe3 {[%clk 00:14:14]} {[%emt 00:02:06]} 25. Nxe3 {[%clk 00:41:40]} {[%emt
00:00:22]} Bc8 {[%clk 00:13:54]} {[%emt 00:00:50]} 26. Nc2 {[%clk 00:39:07]}
{[%emt 00:03:03]} Nc5 {[%clk 00:10:48]} {[%emt 00:03:36]} 27. Qc3 {[%clk
00:39:07]} {[%emt 00:00:31]} Nxd3 {[%clk 00:10:32]} {[%emt 00:00:45]} 28. Qxd3
{[%clk 00:39:35]} {[%emt 00:00:01]} Qc7 {[%clk 00:10:54]} {[%emt 00:00:07]} 29.
Rec1 {[%clk 00:38:50]} {[%emt 00:01:16]} Qb6 {[%clk 00:10:56]} {[%emt
00:00:28]} 30. Na3 {[%clk 00:39:02]} {[%emt 00:00:19]} Bb7 {[%clk 00:09:16]}
{[%emt 00:01:24]} 31. b5 {[%clk 00:39:13]} {[%emt 00:01:05]} Bh6 {[%clk
00:08:11]} {[%emt 00:01:33]} 32. Rc3 {[%clk 00:38:56]} {[%emt 00:00:45]} Rdc8
{[%clk 00:07:53]} {[%emt 00:00:50]} 33. Nc4 {[%clk 00:37:49]} {[%emt 00:01:37]}
Qc5 {[%clk 00:08:08]} {[%emt 00:00:15]} 34. Rbb3 {[%clk 00:37:37]} {[%emt
00:00:41]} Bg7 {[%clk 00:04:30]} {[%emt 00:04:09]} 35. Ncxe5 {[%clk 00:33:08]}
{[%emt 00:04:58]} Qa7 {[%clk 00:04:38]} {[%emt 00:00:23]} 36. Rxc8+ {[%clk
00:32:58]} {[%emt 00:00:40]} Rxc8 {[%clk 00:05:07]} 37. Nc4 {[%clk 00:32:53]}
{[%emt 00:00:35]} Qc5 {[%clk 00:04:23]} {[%emt 00:01:14]} 38. Na5 {[%clk
00:31:53]} {[%emt 00:01:30]} Rc7 {[%clk 00:03:26]} {[%emt 00:01:27]} 39. Nc6
{[%clk 00:31:51]} {[%emt 00:00:32]} Bc8 {[%clk 00:03:13]} {[%emt 00:00:43]} 40.
Kg2 {[%clk 00:31:17]} {[%emt 00:01:04]} Bg4 {[%clk 00:02:48]} {[%emt 00:00:55]}
41. Nfd4 {[%clk 00:27:58]} {[%emt 00:03:49]} Rb7 {[%clk 00:02:30]} {[%emt
00:00:48]} 42. Rc3 {[%clk 00:22:31]} {[%emt 00:05:57]} Qb6 {[%clk 00:02:03]}
{[%emt 00:00:57]} 43. Ra3 {[%clk 00:22:40]} {[%emt 00:00:21]} h5 {[%emt
00:00:24]} 44. Qc4 {[%emt 00:00:52]} Rc7 {[%clk 00:00:37]} {[%emt 00:00:41]} 45.
Qb4 {[%clk 00:21:58]} {[%emt 00:01:11]} Bd7 {[%clk 00:00:50]} {[%emt 00:00:18]}
46. Qxd6 {[%clk 00:21:36]} {[%emt 00:00:52]} Bxd4 {[%clk 00:01:03]} {[%emt
00:00:17]} 47. Ra6 {[%clk 00:20:55]} {[%emt 00:01:12]} Bc5 {[%clk 00:00:55]}
{[%emt 00:00:37]} 48. Ne7+ {[%clk 00:19:42]} {[%emt 00:01:43]} Kf8 {[%clk
00:00:53]} {[%emt 00:00:32]} 49. Qxb6 {[%clk 00:20:04]} {[%emt 00:00:08]} Bxb6
{[%clk 00:01:18]} {[%emt 00:00:05]} 50. Rxb6 {[%clk 00:20:32]} {[%emt
00:00:02]} Kxe7 {[%clk 00:01:46]} {[%emt 00:00:01]} 51. d6+ {[%clk 00:21:02]}
Kd8 {[%clk 00:02:12]} {[%emt 00:00:05]} 52. dxc7+ {[%clk 00:21:01]} {[%emt
00:00:30]} Kxc7 {[%clk 00:02:41]} {[%emt 00:00:02]} 53. Rf6 {[%clk 00:21:21]}
{[%emt 00:00:10]} Be6 {[%clk 00:03:04]} {[%emt 00:00:08]} 54. Rxe6 {[%emt
00:00:25]} fxe6 {[%clk 00:03:29]} {[%emt 00:00:03]} 55. Kf3 {[%clk 00:21:49]}
{[%emt 00:00:08]} Kb6 {[%clk 00:03:57]} {[%emt 00:00:03]} 1-0